bitfinex/quotes_SOLUSD_20250630
["timestamp","ask_amount","ask_price","bid_price","bid_amount"]
[1751265303373,0.02,151.12,151.11,12.64719574]
[1751265316576,0.02,151.12,151.11,25.5266253]
[1751265318180,0.02,151.12,151.11,12.64719574]
[1751265319485,0.02,151.12,151.11,39.24719574]
[1751265339820,0.02,151.12,151.11,12.64719574]
[1751265356353,0.02,151.12,151.11,7.35303917]
[1751265358056,0.02,151.12,151.11,4.13318178]
[1751265372661,21.88950625,151.12,151.11,4.13318178]
[1751265375465,27.18331249,151.12,151.11,4.13318178]
[1751265377264,21.88950625,151.12,151.11,4.13318178]
[1751265379071,26.916972,151.11,151.1,0.04]
[1751265379256,30.13682939,151.11,151.1,0.04]
[1751265379458,40.86731724,151.11,151.1,0.04]
[1751265379674,18.933972,151.1,151.09,0.04]
[1751265379845,47.86950625,151.08,151.07,0.04]
[1751265380348,53.44903722,151.08,151.07,0.04]
[1751265380977,54.27641344,151.08,151.07,0.04]
[1751265381358,53.44903722,151.08,151.07,0.04]
[1751265384675,27.44903722,151.08,151.07,0.04]
[1751265384863,24.22917983,151.08,151.07,0.04]
[1751265385064,50.22917983,151.08,151.07,0.04]
[1751265385262,53.44903722,151.08,151.07,0.04]
[1751265387475,50.22917983,151.08,151.07,0.04]
[1751265388370,53.44903722,151.08,151.07,0.04]
[1751265388778,50.22917983,151.08,151.07,0.04]
[1751265389375,24.22917983,151.08,151.07,0.04]
[1751265391279,18.64964886,151.1,151.07,3.25985739]
[1751265391454,18.64964886,151.1,151.09,3.21985739]
[1751265396991,5.29450694,151.1,151.09,3.21985739]
[1751265397893,5.29450694,151.1,151.08,3.21985739]
[1751265399883,23.94384306,151.11,151.08,3.21985739]
[1751265400079,146.92,151.12,151.1,3.21985739]
[1751265401193,18.66964886,151.12,151.1,3.21985739]
[1751265401396,0.02,151.12,151.11,3.21985739]
[1751265409293,0.02,151.12,151.11,8.51401396]
[1751265409783,0.02,151.12,151.11,10.33453304]
[1751265413320,0.02,151.12,151.11,15.37490951]
[1751265414020,0.02,151.12,151.11,10.33453304]
[1751265417026,0.02,151.12,151.11,43.03453304]
[1751265417740,0.02,151.12,151.11,5.76]
[1751265417906,0.02,151.12,151.11,10.80037647]
[1751265419734,0.02,151.12,151.11,16.09453304]
[1751265420101,0.02,151.12,151.11,10.80037647]
[1751265428943,0.02,151.17,151.14,33.7893]
[1751265429107,0.02,151.22,151.18,26.0]
[1751265429427,0.02,151.24,151.22,26.0]
[1751265429635,0.02,151.24,151.22,31.04037647]
[1751265429925,0.02,151.24,151.2,5.04037647]
[1751265429926,0.02,151.24,151.23,8.98193234]
[1751265431925,0.02,151.24,151.23,10.7947642]
[1751265433409,0.02,151.24,151.17,13.1771018]
[1751265433638,0.02,151.24,151.21,5.0347642]
[1751265433835,0.02,151.22,151.21,5.0347642]
[1751265434208,0.02,151.22,151.2,5.0347642]
[1751265434625,0.02,151.22,151.19,5.0347642]
[1751265435209,5.31030551,151.22,151.19,5.0347642]
[1751265436323,5.31030551,151.22,151.2,5.0347642]
[1751265436724,5.31030551,151.22,151.19,5.0347642]
[1751265440441,5.31030551,151.22,151.18,10.7947642]
[1751265443429,0.02,151.22,151.2,5.0347642]
[1751265443627,0.02,151.22,151.21,5.0347642]
[1751265444535,0.02,151.22,151.2,5.0347642]
[1751265444736,0.02,151.22,151.18,5.76]
[1751265444923,0.02,151.22,151.19,5.0347642]
[1751265445333,0.02,151.22,151.2,5.0347642]
[1751265446629,0.02,151.22,151.18,5.76]
[1751265446829,0.02,151.22,151.19,5.0347642]
[1751265447422,0.02,151.22,151.18,10.7947642]
[1751265448948,0.02,151.22,151.19,5.0347642]
[1751265451436,0.02,151.22,151.18,5.76]
[1751265451665,0.02,151.22,151.19,5.0347642]
[1751265451856,0.02,151.22,151.2,5.0347642]
[1751265452251,0.02,151.22,151.21,5.0347642]
[1751265452764,0.02,151.22,151.2,5.0347642]
[1751265456473,0.02,151.22,151.19,5.0347642]
[1751265457682,0.02,151.22,151.19,10.32609054]
[1751265457845,0.02,151.22,151.2,5.0347642]
[1751265458351,0.02,151.22,151.19,10.32609054]
[1751265458948,0.02,151.22,151.19,5.0347642]
[1751265459445,0.02,151.22,151.2,5.0347642]
[1751265459641,0.02,151.22,151.19,5.0347642]
[1751265459846,0.02,151.22,151.2,5.0347642]
[1751265460361,0.02,151.22,151.19,5.0347642]
[1751265467452,0.02,151.22,151.18,16.126391]
[1751265468863,0.02,151.22,151.19,0.04]
[1751265469074,0.30432314,151.22,151.19,0.04]
[1751265469381,18.64964886,151.21,151.19,0.04]
[1751265470370,23.94040931,151.21,151.19,0.04]
[1751265471668,5.31908734,151.2,151.19,0.04]
[1751265471879,23.9687362,151.2,151.19,0.04]
[1751265472689,18.933972,151.2,151.19,0.04]
[1751265474179,24.22497729,151.2,151.19,0.04]
[1751265489375,5.29065537,151.21,151.19,0.04]
[1751265490684,18.64964886,151.21,151.19,0.04]
[1751265493702,0.28432314,151.2,151.19,0.04]
[1751265493897,3.50921355,151.2,151.19,0.04]
[1751265495008,53.4498677,151.2,151.19,0.04]
[1751265495799,55.26550157,151.2,151.19,0.04]
[1751265497376,50.22497729,151.2,151.19,0.04]
[1751265497576,55.26550157,151.2,151.19,0.04]
[1751265498201,50.22497729,151.2,151.19,0.04]
[1751265498402,55.26550157,151.2,151.19,0.04]
[1751265504604,50.22497729,151.2,151.19,0.04]
[1751265504795,55.26550157,151.2,151.19,0.04]
[1751265517836,53.45072672,151.2,151.19,0.04]
[1751265518633,50.22497729,151.2,151.19,0.04]
[1751265518922,53.45072672,151.2,151.19,0.04]
[1751265523326,80.17072672,151.2,151.19,0.04]
[1751265523547,28.933972,151.19,151.12,0.04]
[1751265523707,48.15972143,151.13,151.12,0.04]
[1751265524911,53.45317739,151.13,151.12,0.04]
[1751265530739,50.22742796,151.13,151.12,0.04]
[1751265530939,53.45317739,151.13,151.12,0.04]
[1751265532133,51.95249404,151.13,151.12,0.04]
[1751265534910,64.85549176,151.13,151.12,0.04]
[1751265537836,51.95249404,151.13,151.12,0.04]
[1751265541154,64.85549176,151.13,151.12,0.04]
[1751265542657,18.933972,151.12,151.07,0.04]
[1751265542949,49.92687865,151.12,151.07,0.04]
[1751265543522,62.82987637,151.12,151.07,0.04]
[1751265544743,68.12368261,151.12,151.07,0.04]
[1751265545659,55.22068489,151.12,151.07,0.04]
[1751265545834,28.28068489,151.12,151.07,0.04]
[1751265547958,30.10245584,151.12,151.07,0.04]
[1751265549457,35.14997622,151.12,151.07,0.04]
[1751265554259,29.27529862,151.12,151.07,0.04]
[1751265556057,34.322819,151.12,151.07,0.04]
[1751265557064,43.65909296,151.12,151.07,0.04]
[1751265557270,44.933972,151.1,151.07,0.04]
[1751265557569,87.04503305,151.1,151.07,0.04]
[1751265557858,165.833972,151.09,151.07,0.04]
[1751265558156,44.933972,151.05,151.04,0.04]
[1751265558361,50.80903292,151.05,151.04,0.04]
[1751265558562,55.27775189,151.05,151.04,0.04]
[1751265559938,56.10529243,151.05,151.04,0.04]
[1751265561055,51.05777205,151.05,151.04,0.04]
[1751265561264,55.27775189,151.05,151.04,0.04]
[1751265564063,56.10529243,151.05,151.04,0.04]
[1751265564399,61.15281281,151.05,151.04,0.04]
[1751265564758,51.05777205,151.05,151.04,0.04]
[1751265564958,56.10529243,151.05,151.04,0.04]
[1751265568694,55.27775189,151.05,151.04,0.04]
[1751265569488,50.23023151,151.05,151.04,0.04]
[1751265569658,55.27775189,151.05,151.04,0.04]
[1751265571971,50.23023151,151.05,151.04,0.04]
[1751265572271,55.27775189,151.05,151.04,0.04]
[1751265572664,49.94590837,151.05,151.04,0.04]
[1751265572871,54.99342875,151.05,151.04,0.04]
[1751265573111,55.27775189,151.05,151.04,0.04]
[1751265574607,50.23023151,151.05,151.04,0.04]
[1751265574766,55.27775189,151.05,151.04,0.04]
[1751265577995,50.23023151,151.05,151.04,0.04]
[1751265578378,55.27775189,151.05,151.04,0.04]
[1751265578683,50.23023151,151.05,151.04,0.04]
[1751265578884,18.933972,151.05,151.04,0.04]
[1751265579074,18.933972,151.05,151.04,11.04752038]
[1751265579075,18.64964886,151.05,151.04,11.04752038]
[1751265579280,152.19562015,151.07,151.04,11.04752038]
[1751265579486,146.9,151.07,151.05,5.04752038]
[1751265579688,23.94455916,151.09,151.04,6.0]
[1751265579999,23.94455916,151.09,151.06,5.04752038]
[1751265580176,26.0,151.07,151.05,5.04752038]
[1751265581379,18.64964886,151.06,151.04,6.0]
[1751265581691,5.33184352,151.05,151.04,0.04]
[1751265582677,5.83184352,151.05,151.04,0.04]
[1751265583600,11.12810303,151.05,151.04,0.04]
[1751265584677,6.08058265,151.05,151.04,0.04]
[1751265586197,5.58058265,151.05,151.04,0.04]
[1751265587784,5.29590891,151.06,151.04,0.04]
[1751265587986,18.64964886,151.05,151.04,0.04]
[1751265588803,26.0,151.05,151.04,0.04]
[1751265588984,44.64964886,151.05,151.04,0.04]
[1751265591001,49.94590837,151.05,151.04,0.04]
[1751265594423,50.23023151,151.05,151.04,0.04]
[1751265597296,55.27775189,151.05,151.04,0.04]
[1751265598905,50.23023151,151.05,151.04,0.04]
[1751265601805,49.94590837,151.05,151.04,0.04]
[1751265603195,50.23023151,151.05,151.04,0.04]
[1751265603806,55.27775189,151.05,151.04,0.04]
[1751265606892,50.23023151,151.05,151.04,0.04]
[1751265607112,55.27775189,151.05,151.04,0.04]
[1751265615825,56.10529243,151.05,151.04,0.04]
[1751265616525,71.15281281,151.05,151.04,0.04]
[1751265618312,61.15281281,151.05,151.04,0.04]
[1751265618512,71.15281281,151.05,151.04,0.04]
[1751265618924,18.933972,151.04,151.02,0.04]
[1751265619103,51.34149238,151.03,151.02,0.04]
[1751265619424,47.12162213,151.03,151.02,0.04]
[1751265619623,52.16914251,151.03,151.02,0.04]
[1751265620207,51.34149238,151.03,151.02,0.04]
[1751265620720,56.63845324,151.03,151.02,0.04]
[1751265624319,66.63845324,151.03,151.02,0.04]
[1751265624726,70.08510915,151.03,151.02,0.04]
[1751265627335,65.03758877,151.03,151.02,0.04]
[1751265627636,70.08510915,151.03,151.02,0.04]
[1751265630438,65.03758877,151.03,151.02,0.04]
[1751265630818,70.08510915,151.03,151.02,0.04]
[1751265633321,65.03758877,151.03,151.02,0.04]
[1751265633550,60.08510915,151.03,151.02,0.04]
[1751265634531,81.15262915,151.03,151.02,0.04]
[1751265635321,71.15262915,151.03,151.02,0.04]
[1751265637140,81.15262915,151.03,151.02,0.04]
[1751265637338,71.15262915,151.03,151.02,0.04]
[1751265637644,99.230716,151.03,151.02,0.04]
[1751265637934,0.28432314,150.98,150.94,1.5159]
[1751265638139,18.933972,150.96,150.94,1.5159]
[1751265639459,24.23373545,150.96,150.94,1.5159]
[1751265640118,18.64964886,150.97,150.94,6.56342038]
[1751265641325,23.94886405,150.97,150.94,1.5159]
[1751265641535,23.94886405,150.97,150.94,6.56342038]
[1751265641842,23.94886405,150.97,150.94,1.5159]
[1751265642359,28.99638443,150.97,150.94,1.5159]
[1751265642544,31.04752038,150.95,150.88,6.3125]
[1751265642745,18.64964886,150.93,150.88,6.3125]
[1751265643063,0.28432314,150.92,150.88,6.3125]
[1751265643262,26.0,150.9,150.88,6.3125]
[1751265643461,36.34907477,150.9,150.88,6.3125]
[1751265643638,23.69716924,150.89,150.85,1.4071]
[1751265643825,23.69716924,150.89,150.85,6.45462038]
[1751265644062,18.64964886,150.89,150.85,1.4071]
[1751265644541,18.933972,150.89,150.85,5.04752038]
[1751265644740,18.933972,150.89,150.86,5.04752038]
[1751265645047,18.933972,150.89,150.85,5.04752038]
[1751265645247,18.933972,150.89,150.84,6.02]
[1751265645545,18.64964886,150.88,150.85,5.04752038]
[1751265645737,18.64964886,150.88,150.84,6.02]
[1751265645938,23.69716924,150.88,150.84,6.02]
[1751265646527,18.64964886,150.88,150.84,11.06752038]
[1751265646729,18.64964886,150.88,150.84,6.02]
[1751265647032,18.64964886,150.88,150.84,11.06752038]
[1751265647244,18.64964886,150.88,150.84,6.02]
[1751265647449,23.95195295,150.88,150.84,11.06752038]
[1751265647637,28.99947333,150.88,150.84,6.02]
[1751265647948,0.28432314,150.87,150.84,6.02]
[1751265648333,5.33184352,150.87,150.84,6.02]
[1751265649051,18.64964886,150.85,150.84,6.02]
[1751265649554,18.64964886,150.86,150.84,6.02]
[1751265649934,18.64964886,150.86,150.83,13.11762038]
[1751265650137,18.64964886,150.86,150.83,14.4701]
[1751265650532,18.64964886,150.86,150.83,19.51762038]
[1751265651031,23.95264186,150.86,150.83,19.51762038]
[1751265651247,23.95264186,150.86,150.83,14.4701]
[1751265652139,29.00016224,150.86,150.83,1.5224]
[1751265652334,29.00016224,150.86,150.82,11.44752038]
[1751265652335,18.64964886,150.86,150.82,11.44752038]
[1751265652530,23.69716924,150.86,150.82,11.44752038]
[1751265652950,18.64964886,150.86,150.82,11.44752038]
[1751265653465,18.64964886,150.86,150.82,5.04752038]
[1751265653667,18.64964886,150.86,150.82,6.4]
[1751265653841,18.64964886,150.86,150.82,5.04752038]
[1751265654158,18.64964886,150.85,150.82,11.44752038]
[1751265654363,5.04752038,150.85,150.82,6.4]
[1751265655637,10.35081215,150.85,150.82,6.4]
[1751265655840,18.64964886,150.84,150.82,6.4]
[1751265656252,18.64964886,150.84,150.81,6.4]
[1751265656454,18.64964886,150.84,150.81,11.44752038]
[1751265656961,18.64964886,150.84,150.81,6.4]
[1751265657357,5.30292986,150.86,150.81,11.44752038]
[1751265657562,23.98149238,150.87,150.83,5.04752038]
[1751265657749,29.28416119,150.87,150.83,5.04752038]
[1751265657948,24.23664081,150.87,150.83,5.04752038]
[1751265658147,29.28416119,150.87,150.83,5.04752038]
[1751265658459,29.28416119,150.87,150.81,6.4]
[1751265658656,29.28416119,150.87,150.81,11.70467832]
[1751265658834,29.28416119,150.87,150.83,5.04752038]
[1751265659150,23.95231767,150.87,150.81,11.70467832]
[1751265659460,23.95231767,150.87,150.83,5.04752038]
[1751265659850,28.99983805,150.87,150.82,5.04752038]
[1751265660063,5.04752038,150.86,150.82,5.04752038]
[1751265660442,5.04752038,150.86,150.81,6.4]
[1751265660849,5.04752038,150.86,150.82,5.04752038]
[1751265661345,23.95231767,150.87,150.81,11.70458089]
[1751265661557,28.99983805,150.87,150.83,5.04752038]
[1751265662262,23.95231767,150.87,150.81,11.70458089]
[1751265662566,28.99983805,150.87,150.82,5.04752038]
[1751265663363,18.64964886,150.85,150.82,5.04752038]
[1751265663661,18.64964886,150.85,150.81,6.4]
[1751265663837,18.64964886,150.85,150.82,5.04752038]
[1751265664240,18.64964886,150.85,150.81,11.44752038]
[1751265664644,23.95300722,150.85,150.81,6.4]
[1751265664841,23.95300722,150.85,150.81,11.44752038]
[1751265665040,23.95300722,150.85,150.81,6.4]
[1751265665245,29.0005276,150.85,150.81,11.44752038]
[1751265665557,29.0005276,150.85,150.81,6.4]
[1751265666953,29.0005276,150.85,150.81,11.44752038]
[1751265668651,29.0005276,150.85,150.81,6.4]
[1751265668853,23.95300722,150.85,150.81,6.4]
[1751265669151,18.64964886,150.85,150.82,5.04752038]
[1751265669346,18.64964886,150.85,150.81,11.70468754]
[1751265669567,18.64964886,150.85,150.82,5.04752038]
[1751265670044,18.64964886,150.86,150.83,5.04752038]
[1751265670854,18.64964886,150.86,150.81,11.70461353]
[1751265671055,18.64964886,150.86,150.82,5.04752038]
[1751265671270,18.64964886,150.86,150.83,5.04752038]
[1751265672081,18.64964886,150.86,150.82,5.04752038]
[1751265672248,23.95260261,150.86,150.81,6.4]
[1751265672565,5.04752038,150.82,150.8,6.4]
[1751265673650,5.04752038,150.83,150.76,26.0]
[1751265673849,5.04752038,150.83,150.78,5.04752038]
[1751265674050,5.30433629,150.82,150.79,6.4]
[1751265675079,5.30433629,150.82,150.79,6.62]
[1751265675379,18.64964886,150.83,150.8,5.04752038]
[1751265677276,18.64964886,150.83,150.79,6.62]
[1751265677477,18.64964886,150.83,150.8,5.04752038]
[1751265678085,5.30292986,150.86,150.81,5.04752038]
[1751265678271,18.64964886,150.85,150.81,5.04752038]
[1751265678681,18.64964886,150.85,150.8,0.14216157]
[1751265678880,23.69716924,150.85,150.81,5.04752038]
[1751265679087,23.95317982,150.85,150.81,5.04752038]
[1751265679252,5.30187553,150.89,150.84,5.04752038]
[1751265679456,18.64964886,150.88,150.84,5.04752038]
[1751265679658,18.64964886,150.88,150.8,13.04124352]
[1751265679856,18.64964886,150.88,150.84,5.04752038]
[1751265680361,23.95206217,150.88,150.84,5.04752038]
[1751265680767,23.95206217,150.88,150.83,0.28432314]
[1751265680969,23.95206217,150.88,150.85,5.04752038]
[1751265682893,23.95206217,150.88,150.84,5.04752038]
[1751265683188,28.99958255,150.88,150.84,0.28432314]
[1751265683385,18.64964886,150.86,150.83,5.04752038]
[1751265684162,18.64964886,150.86,150.82,0.14216157]
[1751265684362,18.64964886,150.86,150.84,0.28432314]
[1751265685262,23.95258055,150.86,150.84,0.28432314]
[1751265689895,23.95258055,150.86,150.83,0.28432314]
[1751265690088,29.00010093,150.86,150.83,0.28432314]
[1751265692192,31.30194533,150.89,150.84,5.04752038]
[1751265692393,18.64964886,150.88,150.86,0.28432314]
[1751265692784,18.64964886,150.89,150.86,0.28432314]
[1751265693414,18.64964886,150.89,150.86,5.33184352]
[1751265693579,18.64964886,150.89,150.86,0.28432314]
[1751265694403,28.99909233,150.89,150.86,0.28432314]
[1751265695281,18.64964886,150.89,150.86,0.28432314]
[1751265697201,23.95159139,150.89,150.86,0.28432314]
[1751265697590,28.99911177,150.89,150.86,0.28432314]
[1751265698605,28.99911177,150.89,150.84,5.33184352]
[1751265699679,23.69716924,150.86,150.84,0.28432314]
[1751265699885,23.69716924,150.86,150.85,2.47974241]
[1751265700190,18.64964886,150.86,150.85,2.47974241]
[1751265701204,5.04752038,150.86,150.85,2.47974241]
[1751265701610,10.35045024,150.86,150.85,2.47974241]
[1751265701790,10.35045024,150.86,150.81,6.62]
[1751265702105,5.30292986,150.86,150.83,0.28432314]
[1751265702304,10.35045024,150.86,150.84,2.48007017]
[1751265703291,23.69716924,150.85,150.84,2.48007017]
[1751265703493,23.69716924,150.85,150.81,6.62]
[1751265703494,5.30292986,150.86,150.82,0.28432314]
[1751265703817,29.00049738,150.85,150.83,2.48006525]
[1751265703997,23.952977,150.85,150.84,2.48006525]
[1751265704196,29.00049738,150.85,150.84,2.48006525]
[1751265706613,29.00049738,150.85,150.82,0.28432314]
[1751265706614,23.952977,150.85,150.82,0.28432314]
[1751265706806,23.952977,150.85,150.78,6.52]
[1751265706997,5.04752038,150.82,150.79,2.48059868]
[1751265707206,49.952977,150.85,150.8,2.48059868]
[1751265707498,49.952977,150.85,150.78,6.52]
[1751265707499,49.952977,150.85,150.81,2.48059868]
[1751265707703,5.04752038,150.82,150.79,0.28432314]
[1751265707894,5.04752038,150.82,150.75,92.90672127]
[1751265707895,5.30467699,150.82,150.77,6.52]
[1751265708099,5.04752038,150.81,150.77,11.56752038]
[1751265708313,29.00113552,150.84,150.8,5.04752038]
[1751265708512,29.00113552,150.84,150.77,6.52]
[1751265708717,18.64964886,150.84,150.77,6.52]
[1751265709007,18.64964886,150.82,150.78,5.04752038]
[1751265709335,18.64964886,150.84,150.81,5.04752038]
[1751265709491,18.64964886,150.86,150.83,5.04752038]
[1751265709690,18.64964886,150.86,150.82,5.04752038]
[1751265710292,29.00015213,150.86,150.82,5.04752038]
[1751265711530,29.00015213,150.86,150.81,0.28432314]
[1751265711827,29.00015213,150.86,150.82,5.04752038]
[1751265713926,29.00015213,150.86,150.81,5.33184352]
[1751265715604,18.64964886,150.84,150.8,0.28432314]
[1751265715923,18.64964886,150.84,150.81,5.04752038]
[1751265716732,18.64964886,150.84,150.8,0.28432314]
[1751265716931,18.64964886,150.84,150.81,5.04752038]
[1751265717334,18.64964886,150.84,150.8,5.33184352]
[1751265717533,23.95331242,150.84,150.78,5.59005008]
[1751265717714,23.95331242,150.84,150.81,0.28432314]
[1751265718938,29.0008328,150.84,150.81,0.28432314]
[1751265719640,18.64964886,150.82,150.78,5.04752038]
[1751265720226,23.69716924,150.82,150.78,5.04752038]
[1751265720431,23.95331242,150.84,150.78,5.18968195]
[1751265720633,23.95331242,150.84,150.79,5.04752038]
[1751265720822,18.64964886,150.82,150.79,5.04752038]
[1751265721025,23.9541381,150.82,150.79,5.04752038]
[1751265721230,18.64964886,150.82,150.79,5.04752038]
[1751265722538,23.95400044,150.82,150.79,5.04752038]
[1751265722830,5.04752038,150.81,150.78,0.28432314]
[1751265723046,10.35246769,150.81,150.78,0.28432314]
[1751265723227,23.69716924,150.8,150.77,6.52]
[1751265724417,18.64964886,150.78,150.77,6.52]
[1751265724627,23.69716924,150.78,150.77,6.52]
[1751265725139,29.0029127,150.78,150.77,6.52]
[1751265725441,23.95539232,150.78,150.77,6.52]
[1751265725653,29.0029127,150.78,150.77,6.52]
[1751265726151,18.64964886,150.78,150.77,6.52]
[1751265726444,23.95539232,150.78,150.77,6.52]
[1751265726950,1.5611,150.79,150.77,6.52]
[1751265727246,18.64964886,150.8,150.77,11.56752038]
[1751265727429,13.0224227,150.83,150.79,5.04752038]
[1751265727637,11.90444308,150.83,150.79,5.04752038]
[1751265727831,18.64964886,150.82,150.79,5.04752038]
[1751265729936,23.95407346,150.82,150.79,5.04752038]
[1751265731032,18.64964886,150.82,150.78,5.33184352]
[1751265731425,23.95403538,150.82,150.78,0.28432314]
[1751265731838,23.95403538,150.82,150.78,5.33184352]
[1751265732428,23.95403538,150.82,150.78,0.28432314]
[1751265732628,23.95403538,150.82,150.78,5.33184352]
[1751265733978,5.04752038,150.81,150.77,6.52]
[1751265734271,18.64964886,150.81,150.73,7.04265188]
[1751265734429,18.64964886,150.81,150.73,12.09017226]
[1751265734631,18.64964886,150.81,150.76,5.04752038]
[1751265734866,18.64964886,150.79,150.76,5.04752038]
[1751265735266,5.04752038,150.79,150.74,0.28432314]
[1751265735565,5.04752038,150.78,150.75,0.28432314]
[1751265735735,5.04752038,150.78,150.73,7.04265188]
[1751265735736,5.04752038,150.77,150.74,0.28432314]
[1751265736057,10.35375236,150.77,150.74,0.28432314]
[1751265736833,5.30623198,150.77,150.74,0.28432314]
[1751265737042,10.35375236,150.77,150.74,0.28432314]
[1751265737247,5.30623198,150.77,150.74,0.28432314]
[1751265737449,10.35375236,150.77,150.74,0.28432314]
[1751265737644,5.30623198,150.77,150.74,0.28432314]
[1751265737848,10.35375236,150.77,150.74,0.28432314]
[1751265738854,18.64964886,150.82,150.73,7.04265188]
[1751265739072,5.04752038,150.79,150.76,0.28432314]
[1751265739746,10.35294958,150.79,150.76,0.28432314]
[1751265740462,5.3054292,150.79,150.76,0.28432314]
[1751265740661,10.35294958,150.79,150.76,0.28432314]
[1751265741066,10.35294958,150.79,150.74,0.28432314]
[1751265741365,23.95507806,150.79,150.75,0.28432314]
[1751265741548,23.95507806,150.79,150.76,5.04752038]
[1751265742464,23.95545583,150.78,150.75,0.28432314]
[1751265742668,23.95545583,150.78,150.76,5.04752038]
[1751265743166,18.64964886,150.78,150.75,0.28432314]
[1751265743348,18.64964886,150.78,150.76,5.04752038]
[1751265743764,23.95512785,150.79,150.75,0.28432314]
[1751265743966,18.64964886,150.78,150.76,5.04752038]
[1751265744961,18.64964886,150.8,150.77,5.04752038]
[1751265745167,18.64964886,150.8,150.75,0.28432314]
[1751265745168,18.64964886,150.8,150.78,5.04752038]
[1751265745468,18.64964886,150.81,150.78,5.04752038]
[1751265746261,23.69716924,150.81,150.77,5.04752038]
[1751265747078,5.30503978,150.8,150.77,5.04752038]
[1751265747869,10.35256016,150.8,150.75,5.04752038]
[1751265748058,10.35256016,150.8,150.76,0.28432314]
[1751265748264,5.04752038,150.79,150.76,0.28432314]
[1751265748784,18.64964886,150.78,150.74,0.28432314]
[1751265748987,23.95556239,150.78,150.75,5.04752038]
[1751265750761,23.95556239,150.78,150.74,0.28432314]
[1751265750961,23.95556239,150.78,150.75,5.04752038]
[1751265751380,23.95556239,150.78,150.74,5.33184352]
[1751265751689,23.95556239,150.78,150.75,5.04752038]
[1751265751992,23.69716924,150.79,150.75,5.04752038]
[1751265752789,18.64964886,150.79,150.74,0.28432314]
[1751265752961,18.64964886,150.79,150.75,5.04752038]
[1751265753359,5.30574346,150.78,150.76,5.04752038]
[1751265753578,5.30574346,150.78,150.74,0.28432314]
[1751265753579,5.30574346,150.78,150.75,5.04752038]
[1751265753985,5.30574346,150.78,150.76,5.04752038]
[1751265755297,5.30574346,150.78,150.75,5.04752038]
[1751265755985,5.30574346,150.78,150.74,0.28432314]
[1751265756187,5.30574346,150.78,150.75,5.04752038]
[1751265757072,5.30574346,150.78,150.74,5.33184352]
[1751265757787,5.30574346,150.78,150.74,0.28432314]
[1751265757995,5.30574346,150.78,150.75,5.04752038]
[1751265758794,18.64964886,150.77,150.75,5.04752038]
[1751265759193,18.64964886,150.77,150.73,7.04265188]
[1751265759372,18.64964886,150.77,150.74,5.04752038]
[1751265759573,5.30644733,150.76,150.74,5.04752038]
[1751265760488,5.30644733,150.76,150.73,12.09017226]
[1751265762577,5.30644733,150.76,150.73,7.04265188]
[1751265762972,5.30644733,150.76,150.73,12.09017226]
[1751265763499,5.30644733,150.76,150.74,5.04752038]
[1751265763693,5.30644733,150.76,150.73,12.09017226]
[1751265764201,5.30644733,150.76,150.73,7.04265188]
[1751265764501,5.30644733,150.76,150.73,12.09017226]
[1751265765700,5.30644733,150.76,150.73,7.04265188]
[1751265766001,5.30644733,150.76,150.73,12.09017226]
[1751265766999,23.69716924,150.77,150.69,26.0]
[1751265767000,29.00398214,150.75,150.69,26.0]
[1751265767211,29.00398214,150.75,150.71,5.04752038]
[1751265767499,18.64964886,150.75,150.73,5.04752038]
[1751265767705,23.95654807,150.75,150.72,5.04752038]
[1751265768400,23.95654807,150.75,150.72,0.28432314]
[1751265769394,29.00406845,150.75,150.72,0.28432314]
[1751265769991,29.00406845,150.75,150.69,5.30887791]
[1751265770190,23.95654807,150.75,150.7,0.28432314]
[1751265770392,5.04752038,150.72,150.68,11.48752038]
[1751265770598,5.04752038,150.72,150.68,6.44]
[1751265770806,5.30689921,150.75,150.68,6.44]
[1751265771106,18.64964886,150.72,150.68,6.44]
[1751265771313,18.64964886,150.72,150.68,10.98752038]
[1751265771491,5.04752038,150.72,150.69,0.28432314]
[1751265771899,23.69716924,150.72,150.69,0.28432314]
[1751265772100,18.64964886,150.71,150.68,5.94]
[1751265772299,23.9578964,150.71,150.68,5.94]
[1751265773003,18.64964886,150.68,150.63,6.44]
[1751265773310,23.9578964,150.71,150.63,11.48752038]
[1751265773616,5.04752038,150.68,150.63,6.44]
[1751265773908,5.04752038,150.68,150.64,5.04752038]